[Event "January 9 Early 2024"]
[Site "https://www.chess.com"]
[Date "2024.01.11"]
[Round "4"]
[White "Onyshchuk, Volodymyr"]
[Black "Daneshvar, Bardiya"]
[Result "1-0"]
[Board "149"]
[TimeControl "180+1"]
[WhiteFideId "14114038"]
[BlackFideId "12576468"]
[WhiteElo "2759"]
[BlackElo "2941"]
[WhiteTeam "UKR"]
[BlackTeam "IRI"]
[WhiteClock "0:00:44"]
[BlackClock "0:00:04"]

1. e4 {[%clk 0:02:53]}  c6 {[%clk 0:03:00]} 2. d4 {[%clk 0:02:51]}  Na6 {[%clk 0:03:01]} 3. Nc3 {[%clk 0:02:46]}  Nc7 {[%clk 0:03:01]} 4. Nf3 {[%clk 0:02:44]}  g6 {[%clk 0:03:01]} 5. h3 {[%clk 0:02:42]}  Bg7 {[%clk 0:03:01]} 6. Bd3 {[%clk 0:02:40]}  d6 {[%clk 0:03:01]} 7. O-O {[%clk 0:02:39]}  e5 {[%clk 0:03:00]} 8. Bg5 {[%clk 0:02:34]}  f6 {[%clk 0:02:57]} 9. Be3 {[%clk 0:02:34]}  Ne7 {[%clk 0:02:57]} 10. Bc4 {[%clk 0:02:34]}  Be6 {[%clk 0:02:55]} 11. Bb3 {[%clk 0:02:29]}  O-O {[%clk 0:02:53]} 12. dxe5 {[%clk 0:02:27]}  dxe5 {[%clk 0:02:51]} 13. Qxd8 {[%clk 0:02:23]}  Rfxd8 {[%clk 0:02:52]} 14. Rfd1 {[%clk 0:02:23]}  b6 {[%clk 0:02:43]} 15. Ne1 {[%clk 0:02:19]}  Kf7 {[%clk 0:02:41]} 16. Kf1 {[%clk 0:02:11]}  Bxb3 {[%clk 0:02:14]} 17. axb3 {[%clk 0:02:10]}  Rxd1 {[%clk 0:02:14]} 18. Rxd1 {[%clk 0:02:10]}  Ke6 {[%clk 0:02:11]} 19. Ra1 {[%clk 0:02:09]}  Nc8 {[%clk 0:02:06]} 20. Nd3 {[%clk 0:02:07]}  Nd6 {[%clk 0:02:02]} 21. Nb4 {[%clk 0:02:06]}  Kd7 {[%clk 0:01:59]} 22. f3 {[%clk 0:02:05]}  a5 {[%clk 0:01:56]} 23. Nd3 {[%clk 0:02:04]}  c5 {[%clk 0:01:57]} 24. Ke2 {[%clk 0:01:59]}  Kc6 {[%clk 0:01:57]} 25. Nf2 {[%clk 0:01:53]}  c4 {[%clk 0:01:49]} 26. Rd1 {[%clk 0:01:49]}  b5 {[%clk 0:01:42]} 27. Nd5 {[%clk 0:01:47]}  Nxd5 {[%clk 0:01:32]} 28. Rxd5 {[%clk 0:01:45]}  cxb3 {[%clk 0:01:31]} 29. cxb3 {[%clk 0:01:45]}  Nb7 {[%clk 0:01:30]} 30. Rd1 {[%clk 0:01:25]}  Rc8 {[%clk 0:00:58]} 31. h4 {[%clk 0:01:07]}  Bf8 {[%clk 0:00:54]} 32. Nd3 {[%clk 0:01:02]}  Ra8 {[%clk 0:00:38]} 33. h5 {[%clk 0:01:02]}  a4 {[%clk 0:00:33]} 34. bxa4 {[%clk 0:01:00]}  Rxa4 {[%clk 0:00:32]} 35. hxg6 {[%clk 0:01:00]}  hxg6 {[%clk 0:00:32]} 36. Rh1 {[%clk 0:01:00]}  Bc5 {[%clk 0:00:17]} 37. Rh6 {[%clk 0:00:51]}  Bxe3 {[%clk 0:00:13]} 38. Kxe3 {[%clk 0:00:51]}  Nc5 {[%clk 0:00:07]} 39. Rxg6 {[%clk 0:00:50]}  Nd7 {[%clk 0:00:05]} 40. g4 {[%clk 0:00:48]}  Kc7 {[%clk 0:00:05]} 41. Rg7 {[%clk 0:00:45]}  Rc4 {[%clk 0:00:06]} 42. g5 {[%clk 0:00:45]}  fxg5 {[%clk 0:00:04]} 43. Nxe5 {[%clk 0:00:44]} 1-0

[Event "January 9 Early 2024"]
[Site "https://www.chess.com"]
[Date "2024.01.11"]
[Round "4"]
[White "Klimkowski, Jan"]
[Black "Perske, Thore"]
[Result "0-1"]
[Board "150"]
[TimeControl "180+1"]
[WhiteFideId "21856222"]
[BlackFideId "12902195"]
[WhiteElo "2923"]
[BlackElo "2646"]
[WhiteTeam "POL"]
[BlackTeam "GER"]
[WhiteClock "0:00:11"]
[BlackClock "0:00:13"]

1. g3 {[%clk 0:03:00]}  Nf6 {[%clk 0:02:59]} 2. Bg2 {[%clk 0:03:01]}  g6 {[%clk 0:03:00]} 3. Nf3 {[%clk 0:03:00]}  Bg7 {[%clk 0:03:00]} 4. O-O {[%clk 0:03:01]}  O-O {[%clk 0:03:01]} 5. b3 {[%clk 0:03:02]}  d6 {[%clk 0:03:00]} 6. Bb2 {[%clk 0:03:03]}  e5 {[%clk 0:03:01]} 7. c4 {[%clk 0:03:03]}  Re8 {[%clk 0:02:54]} 8. Nc3 {[%clk 0:03:03]}  a5 {[%clk 0:02:49]} 9. d4 {[%clk 0:03:03]}  e4 {[%clk 0:02:48]} 10. Nd2 {[%clk 0:03:00]}  Bf5 {[%clk 0:02:47]} 11. f3 {[%clk 0:02:43]}  e3 {[%clk 0:02:42]} 12. Nde4 {[%clk 0:02:42]}  Nbd7 {[%clk 0:02:33]} 13. Qd3 {[%clk 0:02:33]}  Bxe4 {[%clk 0:02:10]} 14. fxe4 {[%clk 0:02:28]}  c5 {[%clk 0:02:10]} 15. Nb5 {[%clk 0:02:21]}  Qb6 {[%clk 0:02:02]} 16. Qxe3 {[%clk 0:02:13]}  a4 {[%clk 0:01:42]} 17. e5 {[%clk 0:02:10]}  dxe5 {[%clk 0:01:41]} 18. dxe5 {[%clk 0:02:09]}  Ng4 {[%clk 0:01:37]} 19. Qf3 {[%clk 0:02:03]}  Ndxe5 {[%clk 0:01:27]} 20. Qxb7 {[%clk 0:02:01]}  Qxb7 {[%clk 0:01:23]} 21. Bxb7 {[%clk 0:02:02]}  Rab8 {[%clk 0:01:19]} 22. Bd5 {[%clk 0:01:58]}  axb3 {[%clk 0:01:16]} 23. axb3 {[%clk 0:01:56]}  Re7 {[%clk 0:01:05]} 24. Ra8 {[%clk 0:01:33]}  Rxa8 {[%clk 0:01:01]} 25. Bxa8 {[%clk 0:01:34]}  h5 {[%clk 0:00:48]} 26. Ra1 {[%clk 0:01:19]}  Ne3 {[%clk 0:00:22]} 27. h3 {[%clk 0:00:49]}  h4 {[%clk 0:00:20]} 28. g4 {[%clk 0:00:50]}  Nf3+ {[%clk 0:00:18]} 29. Bxf3 {[%clk 0:00:48]}  Bxb2 {[%clk 0:00:19]} 30. Ra2 {[%clk 0:00:37]}  Be5 {[%clk 0:00:17]} 31. Na7 {[%clk 0:00:27]}  Rd7 {[%clk 0:00:17]} 32. Kf2 {[%clk 0:00:13]}  Nd1+ {[%clk 0:00:17]} 33. Ke1 {[%clk 0:00:13]}  Bg3+ {[%clk 0:00:13]} 34. Kf1 {[%clk 0:00:10]}  Ne3+ {[%clk 0:00:13]} 35. Kg1 {[%clk 0:00:11]}  Rd1# {[%clk 0:00:13]} 0-1

[Event "January 9 Early 2024"]
[Site "https://www.chess.com"]
[Date "2024.01.11"]
[Round "4"]
[White "Franchini, Gabriele"]
[Black "Balla, Tamas-Kristof"]
[Result "0-1"]
[Board "151"]
[TimeControl "180+1"]
[WhiteFideId "806790"]
[BlackFideId "1208497"]
[WhiteElo "2235"]
[BlackElo "2467"]
[WhiteTeam "ITA"]
[BlackTeam "ROU"]
[WhiteClock "0:00:05"]
[BlackClock "0:00:17"]

1. e4 {[%clk 0:03:00]}  c5 {[%clk 0:02:58]} 2. Nc3 {[%clk 0:03:00]}  Nc6 {[%clk 0:02:58]} 3. Bb5 {[%clk 0:03:00]}  Nd4 {[%clk 0:02:57]} 4. Nf3 {[%clk 0:03:00]}  Nf6 {[%clk 0:02:57]} 5. e5 {[%clk 0:02:53]}  Nxb5 {[%clk 0:02:55]} 6. exf6 {[%clk 0:02:33]}  Nxc3 {[%clk 0:02:53]} 7. fxg7 {[%clk 0:02:24]}  Bxg7 {[%clk 0:02:53]} 8. dxc3 {[%clk 0:02:24]}  d6 {[%clk 0:02:37]} 9. O-O {[%clk 0:02:18]}  O-O {[%clk 0:02:37]} 10. Qd3 {[%clk 0:02:13]}  Qd7 {[%clk 0:01:57]} 11. Re1 {[%clk 0:02:08]}  e5 {[%clk 0:01:49]} 12. Bg5 {[%clk 0:01:49]}  f5 {[%clk 0:01:40]} 13. Rad1 {[%clk 0:01:32]}  e4 {[%clk 0:01:25]} 14. Qd5+ {[%clk 0:01:32]}  Kh8 {[%clk 0:01:18]} 15. Nh4 {[%clk 0:01:25]}  Be5 {[%clk 0:01:14]} 16. f4 {[%clk 0:01:05]}  Qg7 {[%clk 0:00:48]} 17. fxe5 {[%clk 0:00:47]}  Qxg5 {[%clk 0:00:48]} 18. Qxd6 {[%clk 0:00:46]}  Kg8 {[%clk 0:00:32]} 19. g3 {[%clk 0:00:41]}  f4 {[%clk 0:00:29]} 20. Qd5+ {[%clk 0:00:31]}  Kh8 {[%clk 0:00:28]} 21. Qxe4 {[%clk 0:00:26]}  fxg3 {[%clk 0:00:27]} 22. Ng2 {[%clk 0:00:23]}  Bf5 {[%clk 0:00:22]} 23. Qh4 {[%clk 0:00:18]}  gxh2+ {[%clk 0:00:22]} 24. Qxh2 {[%clk 0:00:17]}  Bxc2 {[%clk 0:00:21]} 25. Rd7 {[%clk 0:00:16]}  Bf5 {[%clk 0:00:20]} 26. Rxb7 {[%clk 0:00:13]}  Rad8 {[%clk 0:00:21]} 27. Rxa7 {[%clk 0:00:09]}  Rd2 {[%clk 0:00:21]} 28. e6 {[%clk 0:00:09]}  Rg8 {[%clk 0:00:21]} 29. e7 {[%clk 0:00:06]}  Rxg2+ {[%clk 0:00:21]} 30. Kf1 {[%clk 0:00:05]}  Bd3+ {[%clk 0:00:18]} 31. Re2 {[%clk 0:00:04]}  Bxe2+ {[%clk 0:00:17]} 32. Ke1 {[%clk 0:00:05]}  Qc1# {[%clk 0:00:17]} 0-1

[Event "January 9 Early 2024"]
[Site "https://www.chess.com"]
[Date "2024.01.11"]
[Round "4"]
[White "Khegay, Yuliya"]
[Black "Spitzl, Vinzent"]
[Result "0-1"]
[Board "152"]
[TimeControl "180+1"]
[WhiteFideId "14205394"]
[BlackFideId "12901253"]
[WhiteElo "2191"]
[BlackElo "2449"]
[WhiteTeam "UZB"]
[BlackTeam "GER"]
[WhiteClock "0:00:02"]
[BlackClock "0:01:04"]

1. e4 {[%clk 0:02:59]}  d5 {[%clk 0:02:59]} 2. exd5 {[%clk 0:02:59]}  Qxd5 {[%clk 0:02:59]} 3. Nc3 {[%clk 0:03:00]}  Qd8 {[%clk 0:02:59]} 4. d4 {[%clk 0:02:56]}  Nf6 {[%clk 0:02:59]} 5. Nf3 {[%clk 0:02:53]}  g6 {[%clk 0:02:58]} 6. h3 {[%clk 0:02:52]}  Bg7 {[%clk 0:02:58]} 7. Bc4 {[%clk 0:02:50]}  a6 {[%clk 0:02:57]} 8. a4 {[%clk 0:02:49]}  Nc6 {[%clk 0:02:55]} 9. O-O {[%clk 0:02:47]}  O-O {[%clk 0:02:55]} 10. Bf4 {[%clk 0:02:39]}  b6 {[%clk 0:02:54]} 11. Qd2 {[%clk 0:02:07]}  Bb7 {[%clk 0:02:54]} 12. Rfd1 {[%clk 0:02:05]}  Nb4 {[%clk 0:02:38]} 13. Be2 {[%clk 0:01:33]}  Nbd5 {[%clk 0:02:33]} 14. Nxd5 {[%clk 0:01:32]}  Nxd5 {[%clk 0:02:29]} 15. Bh6 {[%clk 0:01:31]}  a5 {[%clk 0:02:24]} 16. Bxg7 {[%clk 0:01:28]}  Kxg7 {[%clk 0:02:24]} 17. c3 {[%clk 0:01:26]}  Qd6 {[%clk 0:02:19]} 18. Ne5 {[%clk 0:01:11]}  Rad8 {[%clk 0:02:09]} 19. Bf3 {[%clk 0:00:49]}  Ba8 {[%clk 0:02:03]} 20. Nc4 {[%clk 0:00:43]}  Qf4 {[%clk 0:01:56]} 21. Qxf4 {[%clk 0:00:42]}  Nxf4 {[%clk 0:01:56]} 22. Bxa8 {[%clk 0:00:43]}  Rxa8 {[%clk 0:01:57]} 23. Re1 {[%clk 0:00:37]}  Nd5 {[%clk 0:01:57]} 24. Re5 {[%clk 0:00:20]}  e6 {[%clk 0:01:57]} 25. Rae1 {[%clk 0:00:20]}  Rac8 {[%clk 0:01:51]} 26. g3 {[%clk 0:00:12]}  Rfd8 {[%clk 0:01:49]} 27. Ne3 {[%clk 0:00:12]}  Nf6 {[%clk 0:01:48]} 28. Ng4 {[%clk 0:00:08]}  Nd7 {[%clk 0:01:45]} 29. R5e3 {[%clk 0:00:07]}  c5 {[%clk 0:01:45]} 30. dxc5 {[%clk 0:00:08]}  Nxc5 {[%clk 0:01:44]} 31. Ra1 {[%clk 0:00:03]}  Rd2 {[%clk 0:01:44]} 32. Ne5 {[%clk 0:00:01]}  Rxb2 {[%clk 0:01:39]} 33. Nc4 {[%clk 0:00:02]}  Rb3 {[%clk 0:01:38]} 34. Rf3 {[%clk 0:00:02]}  Rd8 {[%clk 0:01:34]} 35. Ne5 {[%clk 0:00:02]}  f6 {[%clk 0:01:33]} 36. Nc6 {[%clk 0:00:02]}  Rd6 {[%clk 0:01:30]} 37. Nd4 {[%clk 0:00:03]}  Rb2 {[%clk 0:01:28]} 38. Re1 {[%clk 0:00:03]}  e5 {[%clk 0:01:26]} 39. Nb5 {[%clk 0:00:03]}  Rdd2 {[%clk 0:01:23]} 40. Ra1 {[%clk 0:00:01]}  Ne4 {[%clk 0:01:11]} 41. Nc7 {[%clk 0:00:01]}  Nxf2 {[%clk 0:01:08]} 42. Ne8+ {[%clk 0:00:01]}  Kh6 {[%clk 0:01:05]} 43. Nxf6 {[%clk 0:00:01]}  Nxh3+ {[%clk 0:01:04]} 44. Kf1 {[%clk 0:00:02]}  Rf2+ {[%clk 0:01:03]} 45. Rxf2 {[%clk 0:00:02]}  Rxf2+ {[%clk 0:01:04]} 0-1

[Event "January 9 Early 2024"]
[Site "https://www.chess.com"]
[Date "2024.01.11"]
[Round "4"]
[White "Gatterer, Florian"]
[Black "Leiva, Gianmarco"]
[Result "0-1"]
[Board "154"]
[TimeControl "180+1"]
[WhiteFideId "811688"]
[BlackFideId "3804399"]
[WhiteElo "2424"]
[BlackElo "2689"]
[WhiteTeam "ITA"]
[BlackTeam "PER"]
[WhiteClock "0:00:02"]
[BlackClock "0:01:06"]

1. b3 {[%clk 0:03:00]}  d5 {[%clk 0:02:56]} 2. Nf3 {[%clk 0:03:00]}  Nf6 {[%clk 0:02:56]} 3. Bb2 {[%clk 0:03:00]}  Bf5 {[%clk 0:02:52]} 4. d3 {[%clk 0:02:59]}  e6 {[%clk 0:02:52]} 5. g3 {[%clk 0:02:58]}  Nbd7 {[%clk 0:02:50]} 6. Bg2 {[%clk 0:02:58]}  a5 {[%clk 0:02:47]} 7. a4 {[%clk 0:02:57]}  Bb4+ {[%clk 0:02:44]} 8. Nbd2 {[%clk 0:02:55]}  O-O {[%clk 0:02:44]} 9. O-O {[%clk 0:02:55]}  c6 {[%clk 0:02:42]} 10. Nd4 {[%clk 0:02:53]}  Bg6 {[%clk 0:02:41]} 11. f4 {[%clk 0:02:49]}  e5 {[%clk 0:02:40]} 12. f5 {[%clk 0:02:43]}  exd4 {[%clk 0:02:39]} 13. fxg6 {[%clk 0:02:43]}  hxg6 {[%clk 0:02:34]} 14. Bxd4 {[%clk 0:02:36]}  Bc5 {[%clk 0:02:35]} 15. Bxc5 {[%clk 0:02:29]}  Nxc5 {[%clk 0:02:36]} 16. h3 {[%clk 0:02:14]}  Qd6 {[%clk 0:02:35]} 17. Qe1 {[%clk 0:02:11]}  Rfe8 {[%clk 0:02:32]} 18. Qf2 {[%clk 0:02:12]}  Re7 {[%clk 0:02:28]} 19. Rae1 {[%clk 0:02:10]}  Rae8 {[%clk 0:02:28]} 20. Bf3 {[%clk 0:02:02]}  Re3 {[%clk 0:02:02]} 21. Kg2 {[%clk 0:01:46]}  R8e7 {[%clk 0:02:01]} 22. Kh2 {[%clk 0:01:39]}  Ncd7 {[%clk 0:01:49]} 23. Ne4 {[%clk 0:01:06]}  dxe4 {[%clk 0:01:49]} 24. Qxe3 {[%clk 0:01:05]}  exf3 {[%clk 0:01:49]} 25. Qxf3 {[%clk 0:01:04]}  Qc5 {[%clk 0:01:44]} 26. e4 {[%clk 0:00:45]}  Qxc2+ {[%clk 0:01:42]} 27. Qg2 {[%clk 0:00:44]}  Qxd3 {[%clk 0:01:39]} 28. Rd1 {[%clk 0:00:43]}  Qxb3 {[%clk 0:01:38]} 29. Rb1 {[%clk 0:00:42]}  Qxa4 {[%clk 0:01:38]} 30. Rxb7 {[%clk 0:00:42]}  Qxe4 {[%clk 0:01:31]} 31. Qxe4 {[%clk 0:00:34]}  Rxe4 {[%clk 0:01:30]} 32. Ra1 {[%clk 0:00:33]}  Re2+ {[%clk 0:01:25]} 33. Kg1 {[%clk 0:00:30]}  Ne5 {[%clk 0:01:19]} 34. Rxa5 {[%clk 0:00:29]}  g5 {[%clk 0:01:18]} 35. Rb3 {[%clk 0:00:19]}  Nd5 {[%clk 0:01:15]} 36. Rc5 {[%clk 0:00:16]}  f6 {[%clk 0:01:13]} 37. Kf1 {[%clk 0:00:16]}  Rh2 {[%clk 0:01:13]} 38. h4 {[%clk 0:00:16]}  gxh4 {[%clk 0:01:14]} 39. gxh4 {[%clk 0:00:16]}  Rxh4 {[%clk 0:01:15]} 40. Rb7 {[%clk 0:00:15]}  Kh7 {[%clk 0:01:13]} 41. Kg2 {[%clk 0:00:14]}  Kg6 {[%clk 0:01:14]} 42. Kg3 {[%clk 0:00:14]}  Ra4 {[%clk 0:01:14]} 43. Rb8 {[%clk 0:00:13]}  Kf5 {[%clk 0:01:15]} 44. Re8 {[%clk 0:00:12]}  Ra3+ {[%clk 0:01:15]} 45. Kf2 {[%clk 0:00:12]}  g5 {[%clk 0:01:15]} 46. Ke2 {[%clk 0:00:12]}  Ke4 {[%clk 0:01:14]} 47. Rc1 {[%clk 0:00:08]}  Ra2+ {[%clk 0:01:14]} 48. Kf1 {[%clk 0:00:07]}  Kf3 {[%clk 0:01:14]} 49. Rf8 {[%clk 0:00:01]}  g4 {[%clk 0:01:13]} 50. Kg1 {[%clk 0:00:02]}  g3 {[%clk 0:01:14]} 51. Rg8 {[%clk 0:00:02]}  Ne3 {[%clk 0:01:11]} 52. Re1 {[%clk 0:00:02]}  N5g4 {[%clk 0:01:08]} 53. Kh1 {[%clk 0:00:02]}  Rh2+ {[%clk 0:01:08]} 54. Kg1 {[%clk 0:00:02]}  Rg2+ {[%clk 0:01:06]} 0-1

[Event "January 9 Early 2024"]
[Site "https://www.chess.com"]
[Date "2024.01.11"]
[Round "4"]
[White "Pinheiro, Iung Alicio de O."]
[Black "Gabrielian, Artur"]
[Result "0-1"]
[Board "155"]
[TimeControl "180+1"]
[WhiteFideId "2104350"]
[BlackFideId "4131002"]
[WhiteElo "2593"]
[BlackElo "2804"]
[WhiteTeam "BRA"]
[BlackTeam "RUS"]
[WhiteClock "0:00:02"]
[BlackClock "0:00:23"]

1. e4 {[%clk 0:03:00]}  c5 {[%clk 0:02:59]} 2. Nf3 {[%clk 0:03:00]}  d6 {[%clk 0:02:59]} 3. d4 {[%clk 0:02:59]}  cxd4 {[%clk 0:02:59]} 4. Nxd4 {[%clk 0:03:00]}  Nf6 {[%clk 0:02:59]} 5. Nc3 {[%clk 0:03:00]}  Nc6 {[%clk 0:03:00]} 6. Bc4 {[%clk 0:02:59]}  e6 {[%clk 0:02:59]} 7. Be3 {[%clk 0:02:57]}  Be7 {[%clk 0:02:58]} 8. Qe2 {[%clk 0:02:56]}  a6 {[%clk 0:02:55]} 9. Bb3 {[%clk 0:02:54]}  Na5 {[%clk 0:02:52]} 10. f4 {[%clk 0:02:42]}  Qc7 {[%clk 0:02:49]} 11. Bf2 {[%clk 0:02:38]}  O-O {[%clk 0:02:43]} 12. O-O-O {[%clk 0:02:24]}  Nxb3+ {[%clk 0:02:40]} 13. Nxb3 {[%clk 0:02:18]}  b5 {[%clk 0:02:36]} 14. a3 {[%clk 0:02:15]}  Bb7 {[%clk 0:02:36]} 15. Rhe1 {[%clk 0:01:35]}  Rfc8 {[%clk 0:02:32]} 16. Kb1 {[%clk 0:01:35]}  d5 {[%clk 0:02:22]} 17. exd5 {[%clk 0:01:31]}  Nxd5 {[%clk 0:02:22]} 18. Nxd5 {[%clk 0:01:30]}  Bxd5 {[%clk 0:02:22]} 19. Bd4 {[%clk 0:01:17]}  Bf8 {[%clk 0:01:48]} 20. Qf2 {[%clk 0:01:05]}  f5 {[%clk 0:01:37]} 21. g4 {[%clk 0:01:01]}  Be4 {[%clk 0:01:32]} 22. Rd2 {[%clk 0:00:56]}  a5 {[%clk 0:01:32]} 23. gxf5 {[%clk 0:00:50]}  exf5 {[%clk 0:01:31]} 24. Be5 {[%clk 0:00:48]}  Qc4 {[%clk 0:01:31]} 25. Nd4 {[%clk 0:00:30]}  a4 {[%clk 0:01:25]} 26. Rxe4 {[%clk 0:00:20]}  fxe4 {[%clk 0:01:25]} 27. f5 {[%clk 0:00:21]}  b4 {[%clk 0:01:04]} 28. f6 {[%clk 0:00:14]}  bxa3 {[%clk 0:01:04]} 29. fxg7 {[%clk 0:00:14]}  Bc5 {[%clk 0:01:01]} 30. Nf5 {[%clk 0:00:12]}  Ra6 {[%clk 0:00:44]} 31. Qf4 {[%clk 0:00:08]}  axb2 {[%clk 0:00:26]} 32. Nh6+ {[%clk 0:00:01]}  Rxh6 {[%clk 0:00:26]} 33. Qxh6 {[%clk 0:00:02]}  a3 {[%clk 0:00:23]} 0-1

[Event "January 9 Early 2024"]
[Site "https://www.chess.com"]
[Date "2024.01.11"]
[Round "4"]
[White "Batsiashvili, Nino"]
[Black "Manon-og, Ramon Jr."]
[Result "0-1"]
[Board "162"]
[TimeControl "180+1"]
[WhiteFideId "13602993"]
[BlackFideId "5200776"]
[WhiteElo "2508"]
[BlackElo "2363"]
[WhiteTeam "GEO"]
[BlackTeam "PHI"]
[WhiteClock "0:00:09"]
[BlackClock "0:00:15"]

1. e4 {[%clk 0:03:00]}  c5 {[%clk 0:02:59]} 2. Nf3 {[%clk 0:03:00]}  d6 {[%clk 0:02:59]} 3. c3 {[%clk 0:02:58]}  Nf6 {[%clk 0:02:59]} 4. Bd3 {[%clk 0:02:59]}  Bg4 {[%clk 0:02:54]} 5. h3 {[%clk 0:02:57]}  Bh5 {[%clk 0:02:54]} 6. O-O {[%clk 0:02:52]}  Nc6 {[%clk 0:02:54]} 7. Be2 {[%clk 0:02:45]}  Nxe4 {[%clk 0:02:50]} 8. d4 {[%clk 0:02:45]}  cxd4 {[%clk 0:02:48]} 9. cxd4 {[%clk 0:02:42]}  d5 {[%clk 0:02:48]} 10. Nc3 {[%clk 0:02:31]}  Nxc3 {[%clk 0:02:48]} 11. bxc3 {[%clk 0:02:30]}  e6 {[%clk 0:02:48]} 12. Rb1 {[%clk 0:02:27]}  Qc7 {[%clk 0:02:45]} 13. Qb3 {[%clk 0:02:23]}  b6 {[%clk 0:02:37]} 14. Qa4 {[%clk 0:02:14]}  Bd6 {[%clk 0:02:26]} 15. g4 {[%clk 0:02:05]}  Bg6 {[%clk 0:02:25]} 16. Bb5 {[%clk 0:02:04]}  Rc8 {[%clk 0:02:12]} 17. Rb2 {[%clk 0:02:00]}  Be4 {[%clk 0:02:07]} 18. Ne5 {[%clk 0:01:46]}  Bxe5 {[%clk 0:02:01]} 19. dxe5 {[%clk 0:01:45]}  O-O {[%clk 0:02:01]} 20. f3 {[%clk 0:01:36]}  Bg6 {[%clk 0:01:43]} 21. f4 {[%clk 0:01:36]}  Na5 {[%clk 0:01:40]} 22. Bd2 {[%clk 0:01:29]}  Qc5+ {[%clk 0:01:39]} 23. Kh2 {[%clk 0:01:25]}  Be4 {[%clk 0:01:35]} 24. Rb4 {[%clk 0:01:13]}  h6 {[%clk 0:01:19]} 25. Rd4 {[%clk 0:01:05]}  Rfd8 {[%clk 0:01:10]} 26. Ba6 {[%clk 0:00:47]}  Rc7 {[%clk 0:01:08]} 27. Kg3 {[%clk 0:00:43]}  Bc2 {[%clk 0:00:58]} 28. Qb5 {[%clk 0:00:35]}  Nc4 {[%clk 0:00:55]} 29. Rc1 {[%clk 0:00:20]}  Nxd2 {[%clk 0:00:35]} 30. Rxc2 {[%clk 0:00:20]}  Ne4+ {[%clk 0:00:35]} 31. Kf3 {[%clk 0:00:15]}  Qa3 {[%clk 0:00:22]} 32. Rd3 {[%clk 0:00:12]}  Nxc3 {[%clk 0:00:17]} 33. h4 {[%clk 0:00:09]}  d4 {[%clk 0:00:15]} 34. f5 {[%clk 0:00:09]}  Nxb5 {[%clk 0:00:15]} 0-1

[Event "January 9 Early 2024"]
[Site "https://www.chess.com"]
[Date "2024.01.11"]
[Round "4"]
[White "Svane, Rasmus"]
[Black "Wojtaszek, Radoslaw"]
[Result "1/2-1/2"]
[Board "163"]
[TimeControl "180+1"]
[WhiteFideId "4657101"]
[BlackFideId "1118358"]
[WhiteElo "3017"]
[BlackElo "2874"]
[WhiteTeam "GER"]
[BlackTeam "POL"]
[WhiteClock "0:00:07"]
[BlackClock "0:00:25"]

1. Nf3 {[%clk 0:03:00]}  Nf6 {[%clk 0:02:58]} 2. g3 {[%clk 0:03:00]}  c5 {[%clk 0:02:57]} 3. Bg2 {[%clk 0:03:00]}  Nc6 {[%clk 0:02:58]} 4. c4 {[%clk 0:03:00]}  d5 {[%clk 0:02:57]} 5. cxd5 {[%clk 0:03:00]}  Nxd5 {[%clk 0:02:57]} 6. Nc3 {[%clk 0:02:58]}  Nc7 {[%clk 0:02:55]} 7. a3 {[%clk 0:02:57]}  e6 {[%clk 0:02:44]} 8. O-O {[%clk 0:02:55]}  Be7 {[%clk 0:02:43]} 9. e3 {[%clk 0:02:42]}  O-O {[%clk 0:02:42]} 10. d4 {[%clk 0:02:42]}  cxd4 {[%clk 0:02:41]} 11. exd4 {[%clk 0:02:43]}  Bf6 {[%clk 0:02:38]} 12. Be3 {[%clk 0:02:42]}  Nd5 {[%clk 0:02:38]} 13. Nxd5 {[%clk 0:02:40]}  exd5 {[%clk 0:02:39]} 14. Rc1 {[%clk 0:02:30]}  Qb6 {[%clk 0:02:34]} 15. Ne5 {[%clk 0:01:41]}  Qxb2 {[%clk 0:02:32]} 16. Nxc6 {[%clk 0:01:35]}  bxc6 {[%clk 0:02:33]} 17. Rxc6 {[%clk 0:01:35]}  Be6 {[%clk 0:02:32]} 18. Ra6 {[%clk 0:01:22]}  Rfc8 {[%clk 0:02:15]} 19. Qa4 {[%clk 0:01:21]}  h5 {[%clk 0:01:58]} 20. h4 {[%clk 0:01:07]}  Rc4 {[%clk 0:01:50]} 21. Qa5 {[%clk 0:00:59]}  Bxd4 {[%clk 0:01:29]} 22. Bxd5 {[%clk 0:00:40]}  Rc5 {[%clk 0:01:29]} 23. Bxd4 {[%clk 0:00:31]}  Rxa5 {[%clk 0:01:06]} 24. Bxb2 {[%clk 0:00:28]}  Rxd5 {[%clk 0:01:05]} 25. Bc1 {[%clk 0:00:18]}  Rd7 {[%clk 0:00:57]} 26. Ra5 {[%clk 0:00:17]}  Rad8 {[%clk 0:00:55]} 27. Be3 {[%clk 0:00:14]}  Bc4 {[%clk 0:00:54]} 28. Rc1 {[%clk 0:00:13]}  Rd1+ {[%clk 0:00:53]} 29. Rxd1 {[%clk 0:00:14]}  Rxd1+ {[%clk 0:00:54]} 30. Kg2 {[%clk 0:00:14]}  a6 {[%clk 0:00:47]} 31. Rxh5 {[%clk 0:00:12]}  Bd5+ {[%clk 0:00:47]} 32. f3 {[%clk 0:00:12]}  f6 {[%clk 0:00:45]} 33. g4 {[%clk 0:00:11]}  g6 {[%clk 0:00:36]} 34. Rh6 {[%clk 0:00:11]}  Kg7 {[%clk 0:00:36]} 35. h5 {[%clk 0:00:11]}  g5 {[%clk 0:00:26]} 36. Rg6+ {[%clk 0:00:11]}  Kf7 {[%clk 0:00:27]} 37. Kf2 {[%clk 0:00:11]}  Rd3 {[%clk 0:00:26]} 38. a4 {[%clk 0:00:11]}  a5 {[%clk 0:00:26]} 39. Rh6 {[%clk 0:00:10]}  Kg7 {[%clk 0:00:26]} 40. Rg6+ {[%clk 0:00:11]}  Kf7 {[%clk 0:00:26]} 41. Rh6 {[%clk 0:00:08]}  Kg7 {[%clk 0:00:24]} 42. Rg6+ {[%clk 0:00:07]}  Kf7 {[%clk 0:00:25]} 1/2-1/2